fUST/lending_fUST_20251018
["ID","MTS","AMOUNT","RATE_DAILY","PERIOD"]
[391718268,1760747466603,238.02,0.00023816,2]
[391718269,1760747467217,297.53,0.00024808,2]
[391718270,1760747475060,2275.46902567,0.00025205,2]
[391718271,1760747482992,162.70356344,0.00025205,2]
[391718272,1760747483017,4837.29643656,0.00025205,2]
[391718273,1760747487725,200.0,0.0001551,2]
[391718274,1760747487782,500.0,0.00026849,120]
[391718275,1760747487812,200.0,0.00015559,2]
[391718276,1760747487847,200.0,0.00015608,2]
[391718277,1760747487876,200.0,0.00015657,2]
[391718278,1760747487939,500.0,0.00026849,120]
[391718279,1760747487965,200.0,0.00015705,2]
[391718280,1760747487992,200.0,0.00015754,2]
[391718281,1760747488057,500.0,0.00026849,120]
[391718282,1760747488087,200.0,0.00015803,2]
[391718283,1760747488122,200.0,0.00015852,2]
[391718284,1760747488192,200.0,0.00015901,2]
[391718285,1760747488266,500.0,0.00026849,120]
[391718286,1760747488294,73.18453777,0.0001595,2]
[391718287,1760747488318,126.81546223,0.0001595,2]
[391718288,1760747488365,200.0,0.00015999,2]
[391718289,1760747488408,162.17599267,0.00016048,2]
[391718290,1760747488431,37.82400733,0.00016048,2]
[391718291,1760747488472,200.0,0.00016096,2]
[391718292,1760747488529,500.0,0.00026849,120]
[391718293,1760747488558,200.0,0.00016145,2]
[391718294,1760747488613,200.0,0.00016194,2]
[391718295,1760747488698,200.0,0.00016243,2]
[391718296,1760747488757,500.0,0.00026849,120]
[391718297,1760747488792,200.0,0.00016292,2]
[391718298,1760747488879,200.0,0.00016341,2]
[391718299,1760747488930,200.0,0.0001639,2]
[391718300,1760747488985,500.0,0.00026849,120]
[391718301,1760747489022,200.0,0.00016438,2]
[391718302,1760747489066,200.0,0.00016487,2]
[391718303,1760747489125,200.0,0.00016536,2]
[391718304,1760747489223,500.0,0.00026849,120]
[391718305,1760747489249,200.0,0.00016585,2]
[391718306,1760747489279,200.0,0.00016634,2]
[391718307,1760747489354,200.0,0.00016683,2]
[391718308,1760747489423,200.0,0.00016732,2]
[391718309,1760747489478,286.1472086,0.00026849,120]
[391718310,1760747489663,200.0,0.00016781,2]
[391718311,1760747489694,200.0,0.00016829,2]
[391718312,1760747489725,200.0,0.00016878,2]
[391718313,1760747489757,200.0,0.00016927,2]
[391718314,1760747489793,200.0,0.00016976,2]
[391718315,1760747489898,100.0,0.00017025,2]
[391718316,1760747489922,100.0,0.00017025,2]
[391718317,1760747489958,200.0,0.00017074,2]
[391718318,1760747490045,200.0,0.00017123,2]
[391718319,1760747490114,200.0,0.00017172,2]
[391718320,1760747490177,200.0,0.0001722,2]
[391718321,1760747490249,200.0,0.00017269,2]
[391718322,1760747490353,200.0,0.00017318,2]
[391718323,1760747490436,200.0,0.00017367,2]
[391718324,1760747490472,200.0,0.00017416,2]
[391718325,1760747490541,200.0,0.00017465,2]
[391718326,1760747490605,200.0,0.00017514,2]
[391718327,1760747490670,200.0,0.00017562,2]
[391718328,1760747490740,200.0,0.00017611,2]
[391718329,1760747490804,200.0,0.0001766,2]
[391718330,1760747490870,200.0,0.00017709,2]
[391718331,1760747490977,200.0,0.00017758,2]
[391718332,1760747491011,200.0,0.00017807,2]
[391718333,1760747491076,200.0,0.00017856,2]
[391718334,1760747491158,200.0,0.00017905,2]
[391718335,1760747491227,200.0,0.00017953,2]
[391718336,1760747491297,200.0,0.00018002,2]
[391718337,1760747491367,200.0,0.00018051,2]
[391718338,1760747491435,374.35126919,0.000181,2]
[391718339,1760747505537,1361.01926125,0.00025205,2]
[391718340,1760747505561,3638.98073875,0.00025205,2]
[391718341,1760747508743,300.0,0.000252,2]
[391718342,1760747522975,300.0,0.000252,2]
[391718343,1760747526509,-379.26417607,0.000253,2]
[391718344,1760747528036,5000.0,0.00025205,2]
[391718345,1760747535734,300.0,0.000252,2]
[391718346,1760747536445,461.02926125,0.00024107,2]
[391718347,1760747536468,4538.97073875,0.00024107,2]
[391718348,1760747536592,3267.50652699,0.00019773,2]
[391718349,1760747543165,168.91,0.00025205,2]
[391718350,1760747544981,150.0,0.00019325,2]
[391718351,1760747545383,150.0,0.00020245,2]
[391718352,1760747545866,151.25,0.00021165,2]
[391718353,1760747546274,201.67,0.00022086,2]
[391718354,1760747547129,252.09,0.00023006,2]
[391718355,1760747547550,302.51,0.00023926,2]
[391718356,1760747547932,352.93,0.00024846,2]
[391718357,1760747550586,300.0,0.000252,2]
[391718358,1760747551134,164.17273426,0.00025205,2]
[391718359,1760747551160,4835.82726574,0.00025205,2]
[391718360,1760747552422,300.0,0.000252,2]
[391718362,1760747557158,168.25689,0.00012753,2]
[391718363,1760747557433,481.79159007,0.00029041,120]
[391718364,1760747562352,300.0,0.000252,2]
[391718365,1760747563092,501.2,0.00025204,2]
[391718366,1760747563970,300.0,0.000252,2]
[391718367,1760747567098,372.0,0.00025205,2]
[391718368,1760747574413,300.0,0.000252,2]
[391718369,1760747575391,2922.72584426,0.00025205,2]
[391718370,1760747575414,2077.27415574,0.00025205,2]
[391718371,1760747576361,300.0,0.000252,2]
[391718372,1760747587324,300.0,0.000252,2]
[391718373,1760747587755,300.0,0.000252,2]
[391718374,1760747590734,5000.0,0.00025205,2]
[391718375,1760747599617,2022.73584426,0.00025205,2]
[391718376,1760747599640,2977.26415574,0.00025205,2]
[391718377,1760747599692,300.0,0.000252,2]
[391718378,1760747600529,300.0,0.000252,2]
[391718379,1760747608721,300.0,0.000252,2]
[391718380,1760747612854,300.0,0.000252,2]
[391718381,1760747614849,180.52737639,0.00025205,2]
[391718382,1760747615603,300.0,0.000252,2]
[391718383,1760747620419,300.0,0.000252,2]
[391718384,1760747620991,150.0,0.00019897,2]
[391718385,1760747621485,150.0,0.00020844,2]
[391718386,1760747621879,150.0,0.00021792,2]
[391718387,1760747622623,156.21,0.00022739,2]
[391718388,1760747623067,4436.00846787,0.00025205,2]
[391718389,1760747623090,563.99153213,0.00025205,2]
[391718390,1760747623123,195.27,0.00023687,2]
[391718391,1760747623569,234.32,0.00024634,2]
[391718392,1760747627752,300.0,0.000252,2]
[391718393,1760747631410,5000.0,0.00025205,2]
[391718394,1760747632603,300.0,0.000252,2]
[391718395,1760747639266,300.0,0.000252,2]
[391718396,1760747644423,300.0,0.000252,2]
[391718397,1760747646924,2806.42846787,0.00025205,2]
[391718398,1760747646946,2193.57153213,0.00025205,2]
[391718399,1760747651898,300.0,0.000252,2]
[391718400,1760747654885,5000.0,0.00025205,2]
[391718401,1760747655877,300.0,0.000252,2]
[391718402,1760747664815,154.0,9.3e-07,2]
[391718403,1760747664933,300.0,0.000252,2]
[391718404,1760747665935,154.0,9.3e-07,2]
[391718405,1760747667038,154.0,9.3e-07,2]
[391718406,1760747668172,154.0,9.3e-07,2]
[391718407,1760747669280,154.0,9.3e-07,2]
[391718408,1760747670831,1136.43846787,0.00025205,2]
[391718409,1760747670852,3863.56153213,0.00025205,2]
[391718410,1760747679154,5000.0,0.00025205,2]
[391718411,1760747695686,5000.0,0.00025205,2]
[391718412,1760747696708,0.01,0.00019901,2]
[391718413,1760747696730,149.99,0.00019901,2]
[391718414,1760747697242,150.0,0.00020849,2]
[391718415,1760747697637,150.0,0.00021797,2]
[391718416,1760747698052,150.0,0.00022745,2]
[391718417,1760747698448,186.62,0.00023692,2]
[391718418,1760747698879,223.95,0.0002464,2]
[391718419,1760747703075,5125.88846787,0.00025,2]
[391718420,1760747703096,10000.01,0.00025,2]
[391718421,1760747703119,10000.01,0.00025,2]
[391718422,1760747703141,5374.09153213,0.00025,2]
[391718423,1760747703959,4625.91846787,0.00025205,2]
[391718424,1760747703984,374.08153213,0.00025205,2]
[391718425,1760747712227,5000.0,0.00025205,2]
[391718426,1760747720219,4625.92846787,0.00025205,2]
[391718427,1760747720243,374.07153213,0.00025205,2]
[391718428,1760747725764,-1554.7,0.00025205,2]
[391718429,1760747729390,5000.0,0.00025205,2]
[391718430,1760747729634,300.0,0.000252,2]
[391718431,1760747737294,1590.61,0.00025205,2]
[391718432,1760747742240,300.0,0.000252,2]
[391718433,1760747742655,-2300.58,0.00025205,2]
[391718434,1760747745143,-223.23,0.00025205,2]
[391718435,1760747745566,5000.0,0.00025205,2]
[391718436,1760747747692,-227.03377058,0.00025205,2]
[391718437,1760747750904,-358.74147199,0.00025205,2]
[391718438,1760747753720,4325.93846787,0.00025205,2]
[391718439,1760747753742,674.06153213,0.00025205,2]
[391718440,1760747753978,-299.80475743,0.00025205,2]
[391718441,1760747753999,-120.73582393,0.000253,2]
[391718442,1760747754022,-69.38976958,0.00025348,2]
[391718443,1760747762777,2216.85713507,0.00025205,2]
[391718444,1760747770736,5000.0,0.00025205,2]
[391718445,1760747772417,150.0,0.00019703,2]
[391718446,1760747772890,150.0,0.00020641,2]
[391718447,1760747773275,150.0,0.00021579,2]
[391718448,1760747773662,150.0,0.00022517,2]
[391718449,1760747773729,-434.23587848,0.00025326,8]
[391718450,1760747774144,150.0,0.00023456,2]
[391718451,1760747774523,150.0,0.00024394,2]
[391718452,1760747779127,1883.15286493,0.00025205,2]
[391718453,1760747781593,-167.36751622,0.00025205,2]
[391718454,1760747782995,-172.5,0.00025205,2]
[391718455,1760747784481,-172.41882246,0.00025205,2]
[391718456,1760747786669,-300.0,0.00025205,2]
[391718457,1760747788839,166.35645995,0.000252,2]
[391718458,1760747789086,-172.5,0.00025205,2]
[391718459,1760747790706,-300.0,0.00025205,2]
[391718460,1760747792725,-155.36852801,0.00025205,2]
[391718461,1760747795030,5000.0,0.00025205,2]
[391718462,1760747795323,-172.5,0.00025205,2]
[391718463,1760747812142,-165.60528367,0.00025205,2]
[391718464,1760747813585,-167.36751622,0.00025205,2]
[391718465,1760747816730,-374.84359912,0.00025205,2]
[391718466,1760747817953,4159.59200792,0.00025205,2]
[391718467,1760747817974,840.40799208,0.00025205,2]
[391718468,1760747821016,-246.42357285,0.00025205,2]
[391718469,1760747823882,-549.95229652,0.00025205,2]
[391718470,1760747825866,5000.0,0.00025205,2]
[391718471,1760747841337,3900.10540696,0.00025205,2]
[391718472,1760747841559,-239.61052967,0.00025205,2]
[391718473,1760747843527,579.39719493,0.00033868,120]
[391718474,1760747843875,150.0,0.00019657,2]
[391718475,1760747844291,150.0,0.00020593,2]
[391718476,1760747844558,-182.27558414,0.00025205,2]
[391718477,1760747844700,150.0,0.00021529,2]
[391718478,1760747845109,150.0,0.00022465,2]
[391718479,1760747845534,150.0,0.00023401,2]
[391718480,1760747846397,150.0,0.00024337,2]
[391718481,1760747846572,-280.32084301,0.00025205,2]
[391718482,1760747848533,-185.78076214,0.00025205,2]
[391718483,1760747849257,300.0,0.000252,2]
[391718484,1760747849767,5000.0,0.00025205,2]
[391718485,1760747849797,-187.88947033,0.00025205,2]
[391718486,1760747851891,-24.01740375,0.00025205,2]
[391718487,1760747851918,-148.48259625,0.00025226,2]
[391718488,1760747854350,-300.0,0.00025205,2]
[391718489,1760747861857,300.0,0.000252,2]
[391718490,1760747863521,-220.4952878,0.00025205,2]
[391718491,1760747863541,-18.88491997,0.00025226,2]
[391718492,1760747865630,2659.60200792,0.00025205,2]
[391718493,1760747865653,2340.39799208,0.00025205,2]
[391718494,1760747873559,5000.0,0.00025205,2]
[391718495,1760747873801,300.0,0.000252,2]
[391718496,1760747881733,2359.61200792,0.00025205,2]
[391718497,1760747881754,2268.38799208,0.00025205,2]
[391718498,1760747890127,5000.0,0.00025205,2]
[391718499,1760747898868,2731.62200792,0.00025205,2]
[391718500,1760747898891,2268.37799208,0.00025205,2]
[391718501,1760747907984,300.0,0.000252,2]
[391718502,1760747913239,150.0,0.00019559,2]
[391718503,1760747914307,5000.0,0.00025205,2]
[391718504,1760747921572,300.0,0.000252,2]
[391718505,1760747923749,1981.63200792,0.00025205,2]
[391718506,1760747923772,3018.36799208,0.00025205,2]
[391718507,1760747924816,-285.61803115,0.00025285,2]
[391718508,1760747933335,300.0,0.000252,2]
[391718509,1760747939297,5000.0,0.00025205,2]
[391718510,1760747946009,300.0,0.000252,2]
[391718511,1760747947712,1381.64200792,0.00025205,2]
[391718512,1760747947735,3618.35799208,0.00025205,2]
[391718513,1760747959647,300.0,0.000252,2]
[391718514,1760747963967,5000.0,0.00025205,2]
[391718515,1760747968191,300.0,0.000252,2]
[391718516,1760747972952,4700.01,0.00025205,2]
[391718517,1760747972975,299.99,0.00025205,2]
[391718518,1760747978590,150.0,0.00019558,2]
[391718519,1760747979088,150.0,0.0002049,2]
[391718520,1760747981745,578.50190888,0.00025205,2]
[391718521,1760747989584,5000.0,0.00025205,2]
[391718522,1760747991598,417.15472785,0.00025205,2]
[391718523,1760747998432,3404.36336327,0.00025205,2]
[391718524,1760747998454,1595.63663673,0.00025205,2]
[391718525,1760747999711,-856.38196885,0.00025285,2]
[391718526,1760747999731,-478.17931674,0.000253,2]
[391718527,1760748001937,300.0,0.00029041,120]
[391718528,1760748002345,-21.82068326,0.000253,2]
[391718529,1760748002366,-205.96232907,0.00025325,2]
[391718530,1760748008057,500.0,0.00025053,8]
[391718531,1760748010268,500.0,0.00025053,8]
[391718532,1760748012656,500.0,0.00025053,8]
[391718533,1760748014787,5000.0,0.00025205,2]
[391718534,1760748014877,500.0,0.00025053,8]
[391718535,1760748017096,289.0,0.00025053,8]
[391718536,1760748023132,1115.37336327,0.00025205,2]
[391718537,1760748023168,3884.62663673,0.00025205,2]
[391718538,1760748038444,5000.0,0.00025205,2]
[391718539,1760748044907,150.0,0.00019571,2]
[391718540,1760748045094,150.0,0.00020503,2]
[391718541,1760748045598,150.0,0.00021435,2]
[391718542,1760748046002,150.0,0.00022367,2]
[391718543,1760748046506,150.0,0.00023299,2]
[391718544,1760748046923,150.0,0.00024231,2]
[391718545,1760748047189,215.38336327,0.00025205,2]
[391718546,1760748047214,4784.61663673,0.00025205,2]
[391718547,1760748047397,170.16,0.00025163,2]
[391718548,1760748063320,5000.0,0.00025205,2]
[391718549,1760748071599,45.23336327,0.00025205,2]
[391718550,1760748075550,-152.53881307,0.00025205,2]
[391718551,1760748077593,600.0,0.00033879,120]
[391718552,1760748077740,-203.41471633,0.00025205,2]
[391718553,1760748079200,-155.50471633,0.00025205,2]
[391718554,1760748080734,-313.28092388,0.00025205,2]
[391718555,1760748083179,-199.23471633,0.00025205,2]
[391718556,1760748085129,-197.35056734,0.00025205,2]
[391718557,1760748087606,-347.46118693,0.00025205,2]
[391718558,1760748088819,5000.0,0.00025205,2]
[391718559,1760748089300,300.0,0.000252,2]
[391718560,1760748089596,-230.02804165,0.00025205,2]
[391718561,1760748091064,-278.89,0.00025205,2]
[391718562,1760748094166,-300.0,0.00025205,2]
[391718563,1760748095576,-330.702105,0.00025205,2]
[391718564,1760748101585,300.0,0.000252,2]
[391718565,1760748103119,-280.04871441,0.00025205,2]
[391718566,1760748106173,-490.70547747,0.00025205,2]
[391718567,1760748108683,-178.69856784,0.00025205,2]
[391718568,1760748110216,-211.10913219,0.00025205,2]
[391718569,1760748112400,4400.01,0.00025205,2]
[391718570,1760748112422,599.99,0.00025205,2]
[391718571,1760748113692,300.0,0.000252,2]
[391718572,1760748116742,-1085.79895796,0.00025205,2]
[391718573,1760748117243,150.0,0.00019639,2]
[391718574,1760748118080,150.0,0.00020575,2]
[391718575,1760748118550,150.0,0.0002151,2]
[391718576,1760748118970,150.0,0.00022445,2]
[391718577,1760748119377,150.0,0.0002338,2]
[391718578,1760748119814,155.94,0.00024315,2]
[391718579,1760748120813,5000.0,0.00025205,2]
[391718580,1760748136358,2072.47208408,0.00025205,2]
[391718581,1760748139245,-187.04683,0.00025205,2]
[391718582,1760748144978,5000.0,0.00025205,2]
[391718583,1760748148563,300.0,0.000252,2]
[391718584,1760748161371,300.0,0.000252,2]
[391718585,1760748167869,3500.02,0.00025205,2]
[391718586,1760748167890,1499.98,0.00025205,2]
[391718587,1760748171368,-2740.48108592,0.00025205,2]
[391718588,1760748172974,300.0,0.000252,2]
[391718589,1760748183871,4219.04782816,0.00025205,2]
[391718590,1760748189796,-780.95217184,0.00025205,2]
[391718591,1760748190135,150.0,0.00019643,2]
[391718592,1760748190657,150.0,0.00020578,2]
[391718593,1760748191053,107.84607018,0.00021514,2]
[391718594,1760748191077,42.15392982,0.00021514,2]
[391718595,1760748191941,150.0,0.00022449,2]
[391718596,1760748192419,150.0,0.00023384,2]
[391718597,1760748192721,-190.74284024,0.00025205,2]
[391718598,1760748192849,150.0,0.0002432,2]
[391718599,1760748195205,-265.8597728,0.00025205,2]
[391718600,1760748197091,-225.7922172,0.00025205,2]
[391718601,1760748198664,-164.72928883,0.00025205,2]
[391718602,1760748200191,-171.36217915,0.00025205,2]
[391718603,1760748200217,-123.85742118,0.00025255,2]
[391718604,1760748205514,-26.14257882,0.00025255,2]
[391718605,1760748205535,-191.35742118,0.00025325,2]
[391718606,1760748208031,-108.64257882,0.00025325,2]
[391718607,1760748208052,-121.50833879,0.00025325,2]
[391718608,1760748208529,5000.0,0.00025205,2]
[391718609,1760748216861,257.83372832,0.00025205,2]
[391718610,1760748232231,2538.11799818,0.00025205,2]
[391718611,1760748235760,-233.73657176,0.00025205,2]
[391718612,1760748237238,-2175.63886312,0.00025205,2]
[391718613,1760748238079,-52.50656694,0.00025205,2]
[391718614,1760748240340,435.07026234,0.00025205,2]
[391718615,1760748256239,5000.0,0.00025205,2]
[391718616,1760748256741,814.09921342,0.000252,2]
[391718617,1760748259081,150.0,0.00019964,2]
[391718618,1760748259492,150.0,0.00020914,2]
[391718619,1760748264208,1059.26740323,0.00025205,2]
[391718620,1760748280008,2286.55998713,0.00025205,2]
[391718621,1760748282080,-222.28,0.00025205,2]
[391718622,1760748283561,-847.05425825,0.00025205,2]
[391718623,1760748293224,157.99462108,0.00024575,13]
[391718624,1760748316463,417.15472785,0.00025205,2]
[391718625,1760748325624,150.0,0.00019444,2]
[391718626,1760748326022,189.27,0.0002037,2]
[391718627,1760748326512,283.91,0.00021296,2]
[391718628,1760748326917,378.55,0.00022222,2]
[391718629,1760748327477,473.19,0.00023147,2]
[391718630,1760748328319,567.82,0.00024073,2]
[391718631,1760748328838,662.46,0.00024999,2]
[391718633,1760748434358,150.0,0.00019443,2]
[391718634,1760748434747,163.58,0.00020369,2]
[391718635,1760748434851,229.00386366,0.00033879,60]
[391718636,1760748435161,245.37,0.00021295,2]
[391718637,1760748435574,327.16,0.0002222,2]
[391718638,1760748436059,408.95,0.00023146,2]
[391718639,1760748436559,490.74,0.00024072,2]
[391718640,1760748437364,572.53,0.00024998,2]
[391718641,1760748457937,907.91759837,0.00025205,2]
[391718642,1760748459519,1500.00000004,0.00029041,120]
[391718643,1760748486531,-526.27951961,0.00025205,2]
[391718644,1760748488499,3746.49341116,0.00029041,120]
[391718647,1760748514164,150.0,0.00019613,2]
[391718648,1760748514584,150.0,0.00020547,2]
[391718649,1760748515071,216.74,0.00021481,2]
[391718650,1760748515477,288.99,0.00022415,2]
[391718651,1760748515871,361.24,0.00023349,2]
[391718652,1760748516363,433.49,0.00024283,2]
[391718653,1760748585286,155.0,9.3e-07,2]
[391718654,1760748586643,3.8445362,0.00025124,11]
[391718655,1760748586664,156.1554638,0.00025124,11]
[391718656,1760748586931,160.0,0.00024817,10]
[391718657,1760748587240,160.0,0.0002451,9]
[391718658,1760748587550,160.0,0.00024203,8]
[391718659,1760748587832,160.0,0.00023896,7]
[391718660,1760748588128,160.0,0.00023589,6]
[391718661,1760748588418,160.0,0.00023281,5]
[391718662,1760748588835,160.0,0.00022974,4]
[391718663,1760748589132,160.0,0.00022667,3]
[391718664,1760748592197,4092.08240163,0.00025205,2]
[391718665,1760748594556,150.0,0.00019384,2]
[391718666,1760748595126,150.0,0.00020307,2]
[391718667,1760748595352,155.63,0.0002123,2]
[391718668,1760748595754,207.51,0.00022153,2]
[391718669,1760748596284,259.39,0.00023076,2]
[391718670,1760748596806,311.27,0.00023999,2]
[391718671,1760748597205,363.15,0.00024922,2]
[391718672,1760748602721,224.75643439,0.00029041,120]
[391718673,1760748615121,1374.84213457,0.00025205,2]
[391718674,1760748615145,3625.15786543,0.00025205,2]
[391718704,1760748631691,-441.0,0.00025214,2]
[391718706,1760748631701,-159.684,0.000253,2]
[391718709,1760748631712,-340.316,0.000253,2]
[391718710,1760748631721,-738.71087761,0.000253,2]
[391718712,1760748631730,-441.0,0.00025392,7]
[391718714,1760748631739,-202.344382,0.00025431,2]
[391718716,1760748631748,-160.0,0.00025431,12]
[391718718,1760748631757,-441.0,0.00025464,2]
[391718720,1760748631766,-168.25689,0.00025507,2]
[391718722,1760748631775,-258.37185039,0.00025603,5]
[391718735,1760748637657,-741.62814961,0.00025603,5]
[391718736,1760748637667,-160.0,0.00025738,13]
[391718737,1760748637677,-441.0,0.00025754,2]
[391718738,1760748637686,-1246.00317168,0.00025755,2]
[391718739,1760748637712,-314.10606967,0.00025755,2]
[391718740,1760748637723,-1042.52647146,0.00025755,2]
[391718741,1760748637732,-605.22144756,0.00025805,2]
[391718742,1760748637741,-415.02,0.00025845,2]
[391718743,1760748637751,-766.04318008,0.00025848,2]
[391718744,1760748637760,-586.0,0.00025967,2]
[391718745,1760748637770,-372.9,0.0002599,2]
[391718746,1760748637779,-678.52926206,0.00026023,2]
[391718761,1760748639893,-521.47073794,0.00026023,2]
[391718763,1760748639904,-441.0,0.00026024,2]
[391718765,1760748639914,-160.0,0.00026045,14]
[391718767,1760748639924,-300.0,0.00026077,2]
[391718769,1760748639935,-300.0,0.00026077,2]
[391718772,1760748639946,-1200.0,0.00026078,2]
[391718774,1760748639958,-319.55411459,0.0002608,2]
[391718777,1760748639981,-822.44588541,0.0002608,2]
[391718779,1760748639991,-1445.28735047,0.00026101,2]
[391718781,1760748640000,-441.0,0.00026222,7]
[391718783,1760748640009,-587.0,0.00026222,2]
[391718785,1760748640019,-1445.28735047,0.00026311,2]
[391718787,1760748640028,-160.0,0.00026352,15]
[391718789,1760748640038,-161.3725935,0.00026352,5]
[391718791,1760748640047,-1518.6583218,0.00026362,2]
[391718793,1760748640056,-699.38599922,0.00026362,2]
[391718795,1760748640065,-938.45480543,0.00026396,2]
[391718797,1760748640074,-794.38677775,0.00026396,2]
[391718799,1760748640084,-684.1633755,0.00026405,2]
[391718801,1760748640093,-431.06,0.00026452,10]
[391718803,1760748640103,-359.21,0.00026452,10]
[391718805,1760748640112,-299.34,0.00026452,10]
[391718807,1760748640121,-213.97766586,0.00026457,2]
[391718809,1760748640131,-181.08010149,0.00026457,2]
[391718811,1760748640140,-564.27942449,0.00026457,2]
[391718813,1760748640151,-2665.811733,0.00026457,2]
[391718877,1760748640752,-15.81757281,0.00026457,2]
[391718880,1760748640772,-460.95174316,0.00026457,2]
[391719087,1760748642674,-567.03197693,0.00026376,5]
[391719089,1760748642684,-17039.40281012,0.00026457,2]
[391719091,1760748642693,-151.0,0.00026457,2]
[391719093,1760748642702,-151.0,0.00026457,2]
[391719095,1760748642711,-151.0,0.00026457,2]
[391719097,1760748642720,-151.0,0.00026457,2]
[391719099,1760748642729,-151.0,0.00026457,2]
[391719101,1760748642738,-151.0,0.00026457,2]
[391719103,1760748642747,-151.0,0.00026457,2]
[391719105,1760748642757,-151.0,0.00026457,2]
[391719107,1760748642766,-151.0,0.00026457,2]
[391719109,1760748642775,-151.0,0.00026457,2]
[391719111,1760748642784,-74.82470712,0.00026457,2]
[391719115,1760748642810,-129.03587891,0.00026457,2]
[391719117,1760748642819,-478.2973586,0.00026462,2]
[391719119,1760748642829,-201.02571953,0.00026462,2]
[391719121,1760748642839,-169.63263836,0.00026462,2]
[391719123,1760748642849,-200.0,0.00026462,10]
[391719125,1760748642858,-200.0,0.00026462,10]
[391719127,1760748642867,-200.0,0.00026462,10]
[391719129,1760748642875,-200.0,0.00026462,10]
[391719131,1760748642884,-18990.40908902,0.00026463,2]
[391719284,1760748644315,417.15472785,0.00025205,2]
[391719696,1760748648481,-249.45,0.00026452,10]
[391719699,1760748648495,-315064.67847398,0.00026463,2]
[391719700,1760748648504,-2559.12275332,0.00026463,2]
[391719702,1760748648513,-622.84,0.00026472,2]
[391719705,1760748648523,-622.84,0.00026472,2]
[391719707,1760748648532,-622.84,0.00026472,2]
[391719709,1760748648542,-622.84,0.00026472,2]
[391719711,1760748648552,-622.84,0.00026472,2]
[391719713,1760748648561,-622.84,0.00026472,2]
[391719715,1760748648570,-622.84,0.00026472,2]
[391719717,1760748648579,-622.84,0.00026472,2]
[391719719,1760748648589,-622.84,0.00026472,2]
[391719721,1760748648598,-622.84,0.00026472,2]
[391719723,1760748648608,-622.84,0.00026472,2]
[391719725,1760748648617,-622.84,0.00026472,2]
[391719727,1760748648627,-622.84,0.00026472,2]
[391719729,1760748648636,-622.84,0.00026472,2]
[391719731,1760748648645,-622.84,0.00026472,2]
[391719733,1760748648654,-622.84,0.00026472,2]
[391719735,1760748648663,-622.84,0.00026472,2]
[391719737,1760748648673,-622.84,0.00026472,2]
[391719739,1760748648682,-622.84,0.00026472,2]
[391719741,1760748648691,-372.12,0.00026472,7]
[391719743,1760748648700,-500.0,0.00026472,2]